bitfinex-derivatives/quotes_BTCF0:USTF0_20251028
["timestamp","ask_amount","ask_price","bid_price","bid_amount"]
[1761628072192,0.32537569,113950.0,113940.0,0.05038]
[1761628079302,0.32537569,113950.0,113940.0,0.02869]
[1761628079799,0.30171636,113950.0,113940.0,0.006]
[1761628079989,0.32535505,113950.0,113940.0,0.006]
[1761628086802,0.32535505,113950.0,113940.0,0.02794]
[1761628087406,0.32535505,113950.0,113940.0,0.006]
[1761628091906,0.32535505,113950.0,113940.0,0.0289]
[1761628092313,0.32535505,113950.0,113940.0,0.04991]
[1761628095018,0.32535505,113950.0,113940.0,0.0289]
[1761628095212,0.32535505,113950.0,113940.0,0.006]
[1761628098013,0.1463637,113920.0,113910.0,0.13579729]
[1761628098204,0.1463637,113920.0,113910.0,0.15391]
[1761628098522,0.1463637,113920.0,113910.0,0.29455483]
[1761628099315,0.1463637,113920.0,113910.0,0.29755483]
[1761628100017,0.1503637,113920.0,113910.0,0.32155483]
[1761628100220,0.1503637,113920.0,113910.0,0.42246583]
[1761628100422,0.1503637,113920.0,113910.0,0.57502219]
[1761628100622,0.1364133,113920.0,113910.0,0.57502219]
[1761628100926,0.04463,113920.0,113910.0,0.55102219]
[1761628101118,0.04663,113920.0,113910.0,0.55702219]
[1761628101722,0.04663,113920.0,113910.0,0.55502219]
[1761628102108,0.002,113920.0,113910.0,0.55502219]
[1761628102523,0.002,113920.0,113910.0,0.55402219]
[1761628102820,0.1324056,113930.0,113920.0,0.1448133]
[1761628103016,0.1093256,113930.0,113920.0,0.46736966]
[1761628103424,0.1324056,113930.0,113920.0,0.46736966]
[1761628103916,0.1323983,113940.0,113930.0,0.0877756]
[1761628104123,0.1323983,113940.0,113930.0,0.46736196]
[1761628104315,0.1323954,113950.0,113940.0,0.1447979]
[1761628104622,0.1323954,113950.0,113940.0,0.46735426]
[1761628106014,0.04463,113950.0,113940.0,0.46735426]
[1761628106218,0.1323907,113950.0,113940.0,0.46735426]
[1761628106419,0.02155,113950.0,113940.0,0.46735426]
[1761628106617,0.1323885,113960.0,113950.0,0.1447907]
[1761628106918,0.04463,113960.0,113950.0,0.46734706]
[1761628107705,0.1323828,113960.0,113950.0,0.46734706]
[1761628108820,0.1328606,113970.0,113960.0,0.1461425]
[1761628109020,0.1328606,113970.0,113960.0,0.32509056]
[1761628109021,0.15655475,113970.0,113960.0,0.32509056]
[1761628110121,0.16355475,113970.0,113960.0,0.32709056]
[1761628111830,0.16355475,113970.0,113960.0,0.47960042]
[1761628112626,0.17641475,113970.0,113960.0,0.47960042]
[1761628113223,0.1527206,113970.0,113960.0,0.47960042]
[1761628114028,0.1398606,113970.0,113960.0,0.47960042]
[1761628117931,0.1398606,113970.0,113960.0,0.47065236]
[1761628118134,0.30523046,113970.0,113960.0,0.19467]
[1761628118441,0.30523046,113970.0,113960.0,0.002]
[1761628118832,0.30523046,113970.0,113960.0,0.02467]
[1761628125157,0.30523046,113970.0,113960.0,0.002]
[1761628127060,0.30523046,113970.0,113960.0,0.02467]
[1761628127460,0.30523046,113970.0,113960.0,0.002]
[1761628127649,0.45774032,113970.0,113960.0,0.002]
[1761628128049,0.30523046,113970.0,113960.0,0.002]
[1761628128648,0.45774032,113970.0,113960.0,0.002]
[1761628128843,0.30523046,113970.0,113960.0,0.002]
[1761628130259,0.32890344,113970.0,113960.0,0.002]
[1761628130957,0.4814133,113970.0,113960.0,0.002]
[1761628131155,0.05797,113940.0,113930.0,0.1453403]
[1761628131461,0.05797,113940.0,113930.0,0.21445]
[1761628131462,0.21047986,113940.0,113930.0,0.21445]
[1761628131763,0.21047986,113940.0,113930.0,0.45473576]
[1761628132262,0.21247986,113940.0,113930.0,0.45873576]
[1761628132763,0.05997,113940.0,113930.0,0.45873576]
[1761628133256,0.05797,113940.0,113930.0,0.46464972]
[1761628133562,0.05997,113940.0,113930.0,0.46664972]
[1761628134267,0.05997,113940.0,113930.0,0.46564972]
[1761628140262,0.002,113940.0,113930.0,0.47891972]
[1761628140466,0.04663,113940.0,113930.0,0.47891972]
[1761628141265,0.06034,113940.0,113930.0,0.47891972]
[1761628141574,0.06034,113940.0,113930.0,0.32640986]
[1761628141769,0.06034,113940.0,113930.0,0.47891972]
[1761628142371,0.06034,113940.0,113930.0,0.47891922]
[1761628142571,0.06034,113940.0,113930.0,0.46564922]
[1761628143870,0.06034,113940.0,113930.0,0.31313936]
[1761628144070,0.06034,113940.0,113930.0,0.46564922]
[1761628144470,0.1481082,113940.0,113930.0,0.46564922]
[1761628146665,0.30061806,113940.0,113930.0,0.46564922]
[1761628146868,0.45312792,113940.0,113930.0,0.04645]
[1761628147758,0.46191106,113940.0,113930.0,0.04645]
[1761628147970,0.46191106,113940.0,113930.0,0.002]
[1761628147971,0.45312792,113940.0,113930.0,0.002]
[1761628148466,0.1229509,113910.0,113900.0,0.13611729]
[1761628148672,0.1453309,113910.0,113900.0,0.32248493]
[1761628148968,0.29784076,113910.0,113900.0,0.47499479]
[1761628149274,0.29784076,113910.0,113900.0,0.38719619]
[1761628149866,0.1453309,113910.0,113900.0,0.47799459]
[1761628150066,0.30184076,113910.0,113900.0,0.49799459]
[1761628151166,0.30184076,113910.0,113900.0,0.34548473]
[1761628151468,0.30184076,113910.0,113900.0,0.49799459]
[1761628151669,0.30084076,113910.0,113900.0,0.47799459]
[1761628151873,0.30084076,113910.0,113900.0,0.31282473]
[1761628152064,0.30084076,113910.0,113900.0,0.46533459]
[1761628153571,0.30084076,113910.0,113900.0,0.31282473]
[1761628153769,0.30084076,113910.0,113900.0,0.46533459]
[1761628153969,0.30084076,113910.0,113900.0,0.47799459]
[1761628160070,0.003,113910.0,113900.0,0.63050445]
[1761628160575,0.02419,113910.0,113900.0,0.63050445]
[1761628161478,0.04657,113910.0,113900.0,0.63050445]
[1761628161676,0.04657,113910.0,113900.0,0.32548473]
[1761628161868,0.04657,113910.0,113900.0,0.63050445]
[1761628164780,0.02419,113910.0,113900.0,0.63050445]
[1761628164977,0.04657,113910.0,113900.0,0.63050445]
[1761628171986,0.04657,113910.0,113900.0,0.47812979]
[1761628177577,0.134361,113910.0,113900.0,0.47812979]
[1761628177783,0.134361,113910.0,113900.0,0.32548473]
[1761628177985,0.134361,113910.0,113900.0,0.47812979]
[1761628178287,0.134361,113910.0,113900.0,0.32548473]
[1761628184402,0.134361,113910.0,113900.0,0.47812979]
[1761628186104,0.134361,113910.0,113900.0,0.32548473]
[1761628186305,0.134361,113910.0,113900.0,0.47812979]
[1761628190506,0.134361,113910.0,113900.0,0.32548473]
[1761628194207,0.134361,113910.0,113900.0,0.47812979]
[1761628197202,0.003,113910.0,113900.0,0.47812979]
[1761628197408,0.0907899,113910.0,113900.0,0.47812979]
[1761628199802,0.003,113910.0,113900.0,0.47812979]
[1761628200110,0.0907899,113910.0,113900.0,0.47812979]
[1761628201808,0.003,113910.0,113900.0,0.47812979]
[1761628202301,0.003,113910.0,113900.0,1.07812979]
[1761628203211,0.0907903,113910.0,113900.0,1.07812979]
[1761628204111,0.1125603,113910.0,113900.0,1.07812979]
[1761628205309,0.02477,113910.0,113900.0,1.07812979]
[1761628205506,0.003,113910.0,113900.0,1.07812979]
[1761628205700,0.0877828,113920.0,113910.0,0.1109599]
[1761628205905,0.1306428,113920.0,113910.0,0.46915496]
[1761628206613,0.1306428,113920.0,113910.0,0.38136506]
[1761628207010,0.1366428,113920.0,113910.0,0.38336506]
[1761628208112,0.1366428,113920.0,113910.0,0.26336506]
[1761628208417,0.1366428,113920.0,113910.0,0.11072]
[1761628211621,0.1366428,113920.0,113910.0,0.1985104]
[1761628211921,0.1366428,113920.0,113910.0,0.35115546]
[1761628214122,0.1366428,113920.0,113910.0,0.1985104]
[1761628214323,0.1366428,113920.0,113910.0,0.26336506]
[1761628214517,0.1502828,113920.0,113910.0,0.26336506]
[1761628214726,0.1366428,113920.0,113910.0,0.26336506]
[1761628216125,0.1366428,113920.0,113910.0,0.11072]
[1761628217524,0.1504828,113920.0,113910.0,0.09773]
[1761628222131,0.30312786,113920.0,113910.0,0.04773]
[1761628223326,0.1504828,113920.0,113910.0,0.04773]
[1761628226836,0.1366428,113920.0,113910.0,0.23422506]
[1761628227838,0.1366428,113920.0,113910.0,0.08158]
[1761628228236,0.1366428,113920.0,113910.0,0.1693714]
[1761628228537,0.1366428,113920.0,113910.0,0.08158]
[1761628228744,0.1366428,113920.0,113910.0,0.11158]
[1761628229642,0.1366428,113920.0,113910.0,0.1993704]
[1761628230043,0.1500428,113920.0,113910.0,0.1993704]
[1761628230549,0.1366428,113920.0,113910.0,0.1993704]
[1761628231045,0.1155528,113920.0,113910.0,0.35201546]
[1761628231447,0.1366728,113920.0,113910.0,0.35201546]
[1761628232147,0.1366728,113920.0,113910.0,0.26422506]
[1761628232750,0.1366728,113920.0,113910.0,0.11158]
[1761628233342,0.1500728,113920.0,113910.0,0.09773]
[1761628233849,0.30271823,113920.0,113910.0,0.20037543]
[1761628235247,0.30271823,113920.0,113910.0,0.30037543]
[1761628237851,0.30271823,113920.0,113910.0,0.38816673]
[1761628238052,0.30271823,113920.0,113910.0,0.30037543]
[1761628239862,0.30271823,113920.0,113910.0,0.38816573]
[1761628241156,0.30271823,113920.0,113910.0,0.30037543]
[1761628242760,0.30271823,113920.0,113910.0,0.38816573]
[1761628243964,0.30271823,113920.0,113910.0,0.40179573]
[1761628244260,0.1500728,113920.0,113910.0,0.40179573]
[1761628246061,0.1500728,113920.0,113910.0,0.31400543]
[1761628246454,0.30271823,113920.0,113910.0,0.31400543]
[1761628246653,0.30271823,113920.0,113910.0,0.30037543]
[1761628249164,0.30271823,113920.0,113910.0,0.14773]
[1761628250461,0.30271823,113920.0,113910.0,0.2355213]
[1761628251163,0.30271823,113920.0,113910.0,0.14773]
[1761628251365,0.30271823,113920.0,113910.0,0.30037543]
[1761628251869,0.30271823,113920.0,113910.0,0.14773]
[1761628254369,0.45536366,113920.0,113910.0,0.14773]
[1761628254572,0.30271823,113920.0,113910.0,0.14773]
[1761628256866,0.30271823,113920.0,113910.0,0.04773]
[1761628257073,0.45536366,113920.0,113910.0,0.04773]
[1761628257369,0.30271823,113920.0,113910.0,0.04773]
[1761628257569,0.45536366,113920.0,113910.0,0.04773]
[1761628258763,0.45536366,113920.0,113910.0,0.002]
[1761628259167,0.45536366,113920.0,113910.0,0.02437]
[1761628259368,0.45536366,113920.0,113910.0,0.047]
[1761628266675,0.45536366,113920.0,113910.0,0.217]
[1761628266866,0.30271823,113920.0,113910.0,0.047]
[1761628268477,0.30271823,113920.0,113910.0,0.38322543]
[1761628268975,0.1500728,113920.0,113910.0,0.38322543]
[1761628269177,0.30271823,113920.0,113910.0,0.38322543]
[1761628269476,0.1366728,113920.0,113910.0,0.47101563]
[1761628271174,0.1366728,113920.0,113910.0,0.3183702]
[1761628271375,0.1366728,113920.0,113910.0,0.47101563]
[1761628273470,0.1155528,113920.0,113910.0,0.47101563]
[1761628273777,0.0937828,113920.0,113910.0,0.47101563]
[1761628274272,0.006,113920.0,113910.0,0.62366106]
[1761628274465,0.0877756,113930.0,113920.0,0.1453733]
[1761628274668,0.0877756,113930.0,113920.0,0.69950145]
[1761628274867,0.1091656,113930.0,113920.0,0.69950145]
[1761628275363,0.1091656,113930.0,113920.0,0.62066416]
[1761628275568,0.1091656,113930.0,113920.0,0.69950145]
[1761628275768,0.1323056,113930.0,113920.0,0.70150145]
[1761628275982,0.1383056,113930.0,113920.0,0.70150145]
[1761628276471,0.1383056,113930.0,113920.0,0.62266416]
[1761628277472,0.006,113930.0,113920.0,0.62266416]
[1761628277678,0.0937749,113930.0,113920.0,0.62266416]
[1761628277875,0.006,113930.0,113920.0,0.62266416]
[1761628278174,0.0877728,113940.0,113930.0,0.0877749]
[1761628278377,0.1323028,113940.0,113930.0,0.46801033]
[1761628279477,0.28494823,113940.0,113930.0,0.47676284]
[1761628280075,0.28694823,113940.0,113930.0,0.48176284]
[1761628280575,0.29977823,113940.0,113930.0,0.48176284]
[1761628280773,0.29977823,113940.0,113930.0,0.46818284]
[1761628284081,0.0897672,113940.0,113930.0,0.48176284]
[1761628284275,0.1342972,113940.0,113930.0,0.48176284]
[1761628286880,0.28694263,113940.0,113930.0,0.48176284]
[1761628287081,0.29977263,113940.0,113930.0,0.48176284]
[1761628294586,0.29977263,113940.0,113930.0,0.38040794]
[1761628295185,0.45241806,113940.0,113930.0,0.04901]
[1761628295485,0.45241806,113940.0,113930.0,0.15901]
[1761628295686,0.29973293,113940.0,113930.0,0.15901]
[1761628295888,0.29973293,113940.0,113930.0,0.04901]
[1761628296588,0.29973293,113940.0,113930.0,0.16901]
[1761628297587,0.29973293,113940.0,113930.0,0.04901]
[1761628301187,0.29973293,113940.0,113930.0,0.005]
[1761628302493,0.29973293,113940.0,113930.0,0.02622]
[1761628302885,0.29973293,113940.0,113930.0,0.005]
[1761628303287,0.32346985,113940.0,113930.0,0.005]
[1761628306502,0.47607558,113940.0,113930.0,0.005]
[1761628306806,0.1435428,113920.0,113910.0,0.05197713]
[1761628306991,0.1435428,113920.0,113910.0,0.06309]
[1761628307187,0.1435428,113920.0,113910.0,0.04309]
[1761628307393,0.1435428,113920.0,113910.0,0.06309]
[1761628307992,0.1435428,113920.0,113910.0,0.06409]
[1761628308300,0.1455428,113920.0,113910.0,0.07409]
[1761628308995,0.1455428,113920.0,113910.0,0.05409]
[1761628309800,0.1455428,113920.0,113910.0,0.05309]
[1761628310001,0.1455428,113920.0,113910.0,0.05409]
[1761628310404,0.1435428,113920.0,113910.0,0.04409]
[1761628310701,0.1455428,113920.0,113910.0,0.04709]
[1761628311202,0.1455428,113920.0,113910.0,0.04509]
[1761628314298,0.29814853,113920.0,113910.0,0.04509]
[1761628319106,0.1455428,113920.0,113910.0,0.04509]
[1761628323715,0.29814853,113920.0,113910.0,0.04509]
[1761628328022,0.1455428,113920.0,113910.0,0.19769573]
[1761628328214,0.1455428,113920.0,113910.0,0.04509]
[1761628328412,0.1329228,113920.0,113910.0,0.17864]
[1761628328818,0.1460228,113920.0,113910.0,0.17864]
[1761628333829,0.1460228,113920.0,113910.0,0.2664305]
[1761628334619,0.1460228,113920.0,113910.0,0.41903623]
[1761628334827,0.1460228,113920.0,113910.0,0.2664305]
[1761628335125,0.1460228,113920.0,113910.0,0.33124573]
[1761628335522,0.1460228,113920.0,113910.0,0.41903603]
[1761628336224,0.1329228,113920.0,113910.0,0.41903603]
[1761628348535,0.1456628,113920.0,113910.0,0.41903603]
[1761628348834,0.1456628,113920.0,113910.0,0.2664303]
[1761628355745,0.2983002,113920.0,113910.0,0.4190677]
[1761628360647,0.2983002,113920.0,113910.0,0.3312774]
[1761628360849,0.4509376,113920.0,113910.0,0.04509]
[1761628361049,0.4509376,113920.0,113910.0,0.06509]
[1761628361448,0.2983002,113920.0,113910.0,0.06509]
[1761628361947,0.4509376,113920.0,113910.0,0.06509]
[1761628362750,0.4509376,113920.0,113910.0,0.04509]
[1761628368158,0.4509376,113920.0,113910.0,0.06509]
[1761628368646,0.4509376,113920.0,113910.0,0.04509]
[1761628371561,0.4509376,113920.0,113910.0,0.002]
[1761628373350,0.45967501,113920.0,113910.0,0.002]
[1761628380655,0.4509376,113920.0,113910.0,0.002]
[1761628381871,0.2983002,113920.0,113910.0,0.047]
[1761628382056,0.2983002,113920.0,113910.0,0.2996374]
[1761628382255,0.2983002,113920.0,113910.0,0.1996374]
[1761628383067,0.2983002,113920.0,113910.0,0.047]
[1761628384467,0.2983002,113920.0,113910.0,0.1996374]
[1761628385167,0.2983002,113920.0,113910.0,0.2124974]
[1761628385962,0.2983002,113920.0,113910.0,0.1996374]
[1761628386266,0.2983002,113920.0,113910.0,0.2196374]
[1761628386860,0.1456628,113920.0,113910.0,0.2330674]
[1761628387160,0.2983002,113920.0,113910.0,0.2330674]
[1761628387668,0.2983002,113920.0,113910.0,0.2196374]
[1761628387861,0.2983002,113920.0,113910.0,0.067]
[1761628388259,0.2983002,113920.0,113910.0,0.2196374]
[1761628390873,0.2983002,113920.0,113910.0,0.1996374]
[1761628391667,0.2983002,113920.0,113910.0,0.2996374]
[1761628393079,0.2983002,113920.0,113910.0,0.147]
[1761628393274,0.2983002,113920.0,113910.0,0.2996374]
[1761628401088,0.2983002,113920.0,113910.0,0.147]
[1761628401288,0.2983002,113920.0,113910.0,0.2996374]
[1761628402386,0.2855602,113920.0,113910.0,0.4008575]
[1761628403087,0.2986502,113920.0,113910.0,0.4008575]
[1761628403387,0.1329228,113920.0,113910.0,0.4008575]
[1761628403592,0.1329228,113920.0,113910.0,0.3130674]
[1761628403788,0.1329228,113920.0,113910.0,0.4108575]
[1761628404487,0.1460128,113920.0,113910.0,0.4108575]
[1761628408083,0.2986502,113920.0,113910.0,0.2447901]
[1761628408393,0.2986502,113920.0,113910.0,0.3096374]
[1761628408586,0.2986502,113920.0,113910.0,0.3974282]
[1761628408791,0.4512876,113920.0,113910.0,0.157]
[1761628408986,0.2986502,113920.0,113910.0,0.157]
[1761628409191,0.4512876,113920.0,113910.0,0.157]
[1761628409492,0.4512876,113920.0,113910.0,0.047]
[1761628410794,0.4512876,113920.0,113910.0,0.157]
[1761628410991,0.1460128,113920.0,113910.0,0.157]
[1761628411192,0.4512876,113920.0,113910.0,0.157]
[1761628412695,0.2986502,113920.0,113910.0,0.157]
[1761628415298,0.2986502,113920.0,113910.0,0.2447901]
[1761628415693,0.2986502,113920.0,113910.0,0.2586501]
[1761628415895,0.2986502,113920.0,113910.0,0.2447901]
[1761628416803,0.2986502,113920.0,113910.0,0.3974275]
[1761628417702,0.1460128,113920.0,113910.0,0.2447901]
[1761628420405,0.1460128,113920.0,113910.0,0.157]
[1761628424404,0.1460128,113920.0,113910.0,0.047]
[1761628425506,0.29866032,113920.0,113910.0,0.047]
[1761628427507,0.32224638,113920.0,113910.0,0.002]
[1761628431105,0.29866032,113920.0,113910.0,0.002]
[1761628432206,0.32224,113920.0,113910.0,0.002]
[1761628433516,0.1328356,113890.0,113880.0,0.22343549]
[1761628433703,0.1328356,113890.0,113880.0,0.39343549]
[1761628433903,0.1328356,113890.0,113880.0,0.5259304]
[1761628434512,0.1328356,113890.0,113880.0,0.44709311]
[1761628434905,0.11856334,113890.0,113880.0,0.5259304]
[1761628435113,0.12256334,113890.0,113880.0,0.5509304]
[1761628435311,0.28851086,113890.0,113880.0,0.39896232]
[1761628435615,0.28851086,113890.0,113880.0,0.04614]
[1761628435914,0.28851086,113890.0,113880.0,0.025]
[1761628436115,0.28851086,113890.0,113880.0,0.04614]
[1761628437016,0.28851086,113890.0,113880.0,0.06879]
[1761628438411,0.13586334,113890.0,113880.0,0.06879]
[1761628438614,0.28851086,113890.0,113880.0,0.06879]
[1761628446520,0.13586334,113890.0,113880.0,0.06879]
[1761628446721,0.28851086,113890.0,113880.0,0.06879]
[1761628448918,0.13586334,113890.0,113880.0,0.06879]
[1761628449117,0.28851086,113890.0,113880.0,0.06879]
[1761628451121,0.28851086,113890.0,113880.0,0.17879]
[1761628454017,0.28851086,113890.0,113880.0,0.06879]
[1761628455624,0.28851086,113890.0,113880.0,0.18879]
[1761628456219,0.28851086,113890.0,113880.0,0.06879]
[1761628458128,0.13586334,113890.0,113880.0,0.17879]
[1761628458331,0.28851086,113890.0,113880.0,0.06879]
[1761628458717,0.28851086,113890.0,113880.0,0.18879]
[1761628459020,0.28851086,113890.0,113880.0,0.06879]
[1761628460528,0.28851086,113890.0,113880.0,0.17879]
[1761628463331,0.28851086,113890.0,113880.0,0.06679]
[1761628463630,0.28751086,113890.0,113880.0,0.05079]
[1761628463928,0.28751086,113890.0,113880.0,0.007]
[1761628464125,0.28751086,113890.0,113880.0,0.02978]
[1761628464326,0.31114829,113890.0,113880.0,0.02978]
[1761628464820,0.31114829,113890.0,113880.0,0.007]
[1761628465224,0.31114829,113890.0,113880.0,0.05143]
[1761628468334,0.31114829,113890.0,113880.0,0.007]
[1761628472633,0.146961,113870.0,113860.0,0.13976029]
[1761628472835,0.146961,113870.0,113860.0,0.30976029]
[1761628473032,0.146961,113870.0,113860.0,0.44187894]
[1761628473334,0.29960852,113870.0,113860.0,0.44187894]
[1761628473737,0.146961,113870.0,113860.0,0.44487894]
[1761628474036,0.150961,113870.0,113860.0,0.45123115]
[1761628474237,0.13668509,113870.0,113860.0,0.45123115]
[1761628479527,0.13668509,113870.0,113860.0,0.19340865]
[1761628479734,0.28947467,113870.0,113860.0,0.29340865]
[1761628480136,0.28947467,113870.0,113860.0,0.44619823]
[1761628480643,0.28947467,113870.0,113860.0,0.29340865]
[1761628481644,0.28947467,113870.0,113860.0,0.38123795]
[1761628481844,0.28947467,113870.0,113860.0,0.53402753]
[1761628482345,0.12273509,113870.0,113860.0,0.54777753]
[1761628482536,0.13668509,113870.0,113860.0,0.54777753]
[1761628482732,0.28947467,113870.0,113860.0,0.54777753]
[1761628484247,0.28947467,113870.0,113860.0,0.45994823]
[1761628484745,0.13668509,113870.0,113860.0,0.45994823]
[1761628484945,0.28947467,113870.0,113860.0,0.44619823]
[1761628485445,0.28947467,113870.0,113860.0,0.53402683]
[1761628485845,0.13668509,113870.0,113860.0,0.53402683]
[1761628486045,0.28947467,113870.0,113860.0,0.53402683]
[1761628488150,0.28947467,113870.0,113860.0,0.38123725]
[1761628488451,0.28947467,113870.0,113860.0,0.34619823]
[1761628489749,0.28947467,113870.0,113860.0,0.47619823]
[1761628489951,0.13668509,113870.0,113860.0,0.47619823]
[1761628490251,0.28947467,113870.0,113860.0,0.47619823]
[1761628491453,0.13668509,113870.0,113860.0,0.47619823]
[1761628491654,0.28947467,113870.0,113860.0,0.47619823]
[1761628493152,0.28947467,113870.0,113860.0,0.48994823]
[1761628494457,0.13668509,113870.0,113860.0,0.48994823]
[1761628494754,0.28947467,113870.0,113860.0,0.48994823]
[1761628494949,0.28947467,113870.0,113860.0,0.47619823]
[1761628495756,0.13668509,113870.0,113860.0,0.47619823]
[1761628495957,0.28947467,113870.0,113860.0,0.47619823]
[1761628496746,0.28947467,113870.0,113860.0,0.56402683]
[1761628497356,0.28947467,113870.0,113860.0,0.57777683]
[1761628498548,0.13668509,113870.0,113860.0,0.57777683]
[1761628498748,0.28947467,113870.0,113860.0,0.57777683]
[1761628501053,0.28947467,113870.0,113860.0,0.32340865]
[1761628501250,0.28947467,113870.0,113860.0,0.06129]
[1761628501758,0.28947467,113870.0,113860.0,0.018]
[1761628501958,0.28947467,113870.0,113860.0,0.06055]
[1761628502459,0.28947467,113870.0,113860.0,0.05855]
[1761628502752,0.28547467,113870.0,113860.0,0.04355]
[1761628502957,0.28547467,113870.0,113860.0,0.04455]
[1761628502958,0.28847467,113870.0,113860.0,0.04455]
[1761628503364,0.28847467,113870.0,113860.0,0.02343]
[1761628504057,0.28847467,113870.0,113860.0,0.04455]
[1761628504464,0.28847467,113870.0,113860.0,0.16455]
[1761628504658,0.28847467,113870.0,113860.0,0.04455]
[1761628507971,0.28847467,113870.0,113860.0,0.16455]
[1761628508269,0.28847467,113870.0,113860.0,0.31733958]
[1761628508654,0.28847467,113870.0,113860.0,0.19733958]
[1761628509060,0.28847467,113870.0,113860.0,0.29733958]
[1761628509763,0.13568509,113870.0,113860.0,0.29733958]
[1761628509966,0.28847467,113870.0,113860.0,0.14455]
[1761628510870,0.13568509,113870.0,113860.0,0.14455]
[1761628511173,0.12173509,113870.0,113860.0,0.31111958]
[1761628511564,0.12173509,113870.0,113860.0,0.39894818]
[1761628511771,0.12173509,113870.0,113860.0,0.55173776]
[1761628512274,0.12173509,113870.0,113860.0,0.39894818]
[1761628512462,0.27452467,113870.0,113860.0,0.39894818]
[1761628513171,0.27452467,113870.0,113860.0,0.38516818]
[1761628513473,0.28808467,113870.0,113860.0,0.2323786]
[1761628516076,0.28808467,113870.0,113860.0,0.38516818]
[1761628516559,0.28808467,113870.0,113860.0,0.39894818]
[1761628520472,0.12173509,113870.0,113860.0,0.55173776]
[1761628520975,0.12173509,113870.0,113860.0,0.39894818]
[1761628521576,0.12173509,113870.0,113860.0,0.55173776]
[1761628539794,0.12173509,113870.0,113860.0,0.3989167]
[1761628542201,0.09856509,113870.0,113860.0,0.3989167]
[1761628543192,0.12150509,113870.0,113860.0,0.3989167]
[1761628543392,0.087815,113880.0,113860.0,0.61918805]
[1761628543590,0.132085,113880.0,113870.0,0.2112781]
[1761628543799,0.132085,113880.0,113870.0,0.3812781]
[1761628544500,0.132085,113880.0,113870.0,0.469099]
[1761628544798,0.137085,113880.0,113870.0,0.469099]
[1761628545297,0.132085,113880.0,113870.0,0.469099]
[1761628545494,0.137085,113880.0,113870.0,0.470099]
[1761628547794,0.005,113880.0,113870.0,0.470099]
[1761628548497,0.1141432,113880.0,113870.0,0.470099]
[1761628548697,0.1370832,113880.0,113870.0,0.470099]
[1761628549003,0.1370832,113880.0,113870.0,0.3040009]
[1761628549004,0.1507432,113880.0,113870.0,0.3040009]
[1761628553695,0.1507432,113880.0,113870.0,0.3173409]
[1761628553999,0.1370832,113880.0,113870.0,0.3173409]
[1761628554896,0.005,113880.0,113870.0,0.6013262]
[1761628555088,0.0928132,113880.0,113870.0,0.6013262]
[1761628555590,0.1141432,113880.0,113870.0,0.6013262]
[1761628556200,0.1370832,113880.0,113870.0,0.6013262]
[1761628558104,0.1141432,113880.0,113870.0,0.6013262]
[1761628561505,0.1365532,113880.0,113870.0,0.6013262]
[1761628562406,0.1141432,113880.0,113870.0,0.6013262]
[1761628562905,0.1365532,113880.0,113870.0,0.6013262]
[1761628564906,0.1326393,113900.0,113890.0,0.1459955]
[1761628565199,0.1461957,113910.0,113900.0,0.1111078]
[1761628565404,0.04484,113910.0,113900.0,0.4687459]
[1761628565594,0.1326301,113910.0,113900.0,0.4687459]
[1761628566604,0.04484,113910.0,113900.0,0.4687459]
[1761628567200,0.1449478,113920.0,113910.0,0.1452401]
[1761628567395,0.1449478,113920.0,113910.0,0.4679982]
[1761628569206,0.1449478,113920.0,113910.0,0.3152401]
[1761628570308,0.1469478,113920.0,113910.0,0.3202401]
[1761628570810,0.1332878,113920.0,113910.0,0.3202401]
[1761628571198,0.0455,113920.0,113910.0,0.4729982]
[1761628573910,0.002,113920.0,113910.0,0.6257563]
[1761628574809,0.002,113920.0,113910.0,0.75723338]
[1761628575005,0.1442515,113940.0,113930.0,0.1320743]
[1761628575207,0.1442515,113940.0,113930.0,0.3020743]
[1761628576805,0.1482515,113940.0,113930.0,0.3040743]
[1761628577316,0.1482515,113940.0,113930.0,0.4699824]
[1761628577502,0.1352715,113940.0,113930.0,0.4699824]
[1761628578003,0.0475,113940.0,113930.0,0.4699824]
[1761628578404,0.0283,113940.0,113930.0,0.4739824]
[1761628579010,0.1372665,113940.0,113930.0,0.4739824]
[1761628580109,0.1332665,113940.0,113930.0,0.4739824]
[1761628583616,0.1332665,113940.0,113930.0,0.3212243]
[1761628583809,0.2990246,113940.0,113930.0,0.2203]
[1761628584206,0.2990246,113940.0,113930.0,0.3080742]
[1761628585319,0.2990246,113940.0,113930.0,0.2203]
[1761628585916,0.1462665,113940.0,113930.0,0.3080747]
[1761628587118,0.2990246,113940.0,113930.0,0.0503]
[1761628587413,0.1462665,113940.0,113930.0,0.0503]
[1761628587610,0.2990246,113940.0,113930.0,0.1603]
[1761628588624,0.4517827,113940.0,113930.0,0.006]
[1761628588826,0.2990246,113940.0,113930.0,0.006]
[1761628589808,0.8990246,113940.0,113930.0,0.006]
[1761628590008,0.4517827,113940.0,113930.0,0.006]
[1761628590208,0.2990246,113940.0,113930.0,0.006]
[1761628593314,0.32249022,113940.0,113930.0,0.006]
[1761628595016,0.92249022,113940.0,113930.0,0.006]
[1761628595216,0.92249022,113940.0,113930.0,0.02932]
[1761628595623,0.92249022,113940.0,113930.0,0.05153]
[1761628596823,0.16973212,113940.0,113930.0,0.05153]
[1761628599722,0.32234633,113940.0,113930.0,0.05153]
[1761628602927,0.32234633,113940.0,113930.0,0.02932]
[1761628603225,0.32234633,113940.0,113930.0,0.05153]
[1761628605931,0.32234633,113940.0,113930.0,0.20414421]
[1761628606833,0.92234633,113940.0,113930.0,0.20414421]
[1761628607022,0.92234633,113940.0,113930.0,0.05153]
[1761628607224,0.92234633,113940.0,113930.0,0.20414421]
[1761628608637,0.92234633,113940.0,113930.0,0.42542841]
[1761628609934,0.16973212,113940.0,113930.0,0.42542841]
[1761628610136,0.1462665,113940.0,113930.0,0.42542841]
[1761628610938,0.1462665,113940.0,113930.0,0.33765421]
[1761628611236,0.1462665,113940.0,113930.0,0.20414421]
[1761628611725,0.1462665,113940.0,113930.0,0.31414421]
[1761628611926,0.29888071,113940.0,113930.0,0.31414421]
[1761628612835,0.29888071,113940.0,113930.0,0.40191841]
[1761628614537,0.29888071,113940.0,113930.0,0.20414421]
[1761628617534,0.29888071,113940.0,113930.0,0.05153]
[1761628618236,0.29888071,113940.0,113930.0,0.20414421]
[1761628619849,0.1462665,113940.0,113930.0,0.20414421]
[1761628620040,0.29888071,113940.0,113930.0,0.20414421]
[1761628620647,0.45149492,113940.0,113930.0,0.006]
[1761628620850,0.4750135,113940.0,113930.0,0.006]
[1761628621548,0.4750135,113940.0,113930.0,0.02745]
[1761628621949,0.32239929,113940.0,113930.0,0.0501]